[Event "Betsys MČR v online bleskovém šachu 2021"]
[Site "Chess.com"]
[Date "2021.04.17"]
[Round "4"]
[White "czlolcz"]
[Black "fm_magua"]
[Result "0-1"]
[WhiteElo "2209"]
[BlackElo "2515"]
[TimeControl "180+1"]
[EndTime "9:34:43 PDT"]
[Termination "Uživatel fm_magua zvítězil po vzdání soupeře"]

1. d4 {[%clk 0:03:00.9]} 1... Nf6 {[%clk 0:02:59.7]} 2. c4 {[%clk 0:02:59.9]}
2... g6 {[%clk 0:03:00.2]} 3. Nc3 {[%clk 0:02:59.8]} 3... Bg7 {[%clk 0:03:00.9]}
4. e4 {[%clk 0:03:00.2]} 4... d6 {[%clk 0:03:01.6]} 5. Nf3 {[%clk 0:03:00.7]}
5... O-O {[%clk 0:03:02.3]} 6. h3 {[%clk 0:03:01.4]} 6... e5 {[%clk 0:03:00.3]}
7. dxe5 {[%clk 0:03:02.3]} 7... dxe5 {[%clk 0:03:00.3]} 8. Qxd8 {[%clk
0:03:02.7]} 8... Rxd8 {[%clk 0:03:00.3]} 9. Nd5 {[%clk 0:03:03.6]} 9... Nxd5
{[%clk 0:02:56]} 10. cxd5 {[%clk 0:03:04.5]} 10... c6 {[%clk 0:02:56.5]} 11. Bc4
{[%clk 0:03:02.9]} 11... cxd5 {[%clk 0:02:54.5]} 12. Bxd5 {[%clk 0:03:03.8]}
12... h6 {[%clk 0:02:44.6]} 13. Be3 {[%clk 0:02:48.5]} 13... Nc6 {[%clk
0:02:43.4]} 14. O-O-O {[%clk 0:02:46.1]} 14... Bd7 {[%clk 0:02:40.6]} 15. Kb1
{[%clk 0:02:40.4]} 15... Be8 {[%clk 0:02:40.5]} 16. a3 {[%clk 0:02:18.9]} 16...
Kh7 {[%clk 0:02:39.6]} 17. g4 {[%clk 0:02:13.5]} 17... Rac8 {[%clk 0:02:34.7]}
18. Rc1 {[%clk 0:02:05]} 18... Nd4 {[%clk 0:02:21.4]} 19. Bxd4 {[%clk
0:01:46.5]} 19... exd4 {[%clk 0:02:21.2]} 20. Bxb7 {[%clk 0:01:45.9]} 20... Rb8
{[%clk 0:02:17.8]} 21. Bd5 {[%clk 0:01:38.8]} 21... d3 {[%clk 0:02:17.2]} 22. b3
{[%clk 0:01:38.4]} 22... Ba4 {[%clk 0:02:16.7]} 23. Ka2 {[%clk 0:01:36.4]} 23...
Rxd5 {[%clk 0:02:16.7]} 24. bxa4 {[%clk 0:00:33.7]} 24... Rb2+ {[%clk
0:02:14.3]} 25. Ka1 {[%clk 0:00:34.1]} 25... Rxf2+ {[%clk 0:02:06.6]} 26. Kb1
{[%clk 0:00:33.1]} 26... Rd7 {[%clk 0:02:01]} 0-1

[Event "Betsys MČR v online bleskovém šachu 2021"]
[Site "Chess.com"]
[Date "2021.04.17"]
[Round "4"]
[White "Simaril76"]
[Black "Hroch_Hippo"]
[Result "0-1"]
[WhiteElo "705"]
[BlackElo "1079"]
[TimeControl "180+1"]
[EndTime "9:34:44 PDT"]
[Termination "Uživatel Hroch_Hippo zvítězil po vzdání soupeře"]

1. b3 {[%clk 0:02:58.2]} 1... e5 {[%clk 0:02:59]} 2. e3 {[%clk 0:02:55]} 2...
Nf6 {[%clk 0:02:52.2]} 3. Bb2 {[%clk 0:02:55.3]} 3... Bd6 {[%clk 0:02:49.5]} 4.
Nc3 {[%clk 0:02:51.9]} 4... O-O {[%clk 0:02:47.4]} 5. e4 {[%clk 0:02:43.7]} 5...
Nc6 {[%clk 0:02:44.2]} 6. Nf3 {[%clk 0:02:44]} 6... Bc5 {[%clk 0:02:28.6]} 7.
Bb5 {[%clk 0:02:29.9]} 7... a6 {[%clk 0:02:20.4]} 8. Bxc6 {[%clk 0:02:27.1]}
8... dxc6 {[%clk 0:02:20.6]} 9. O-O {[%clk 0:02:26.8]} 9... Bg4 {[%clk
0:02:19.8]} 10. h3 {[%clk 0:02:23.9]} 10... Bxf3 {[%clk 0:02:19.4]} 11. Qxf3
{[%clk 0:02:21.6]} 11... b5 {[%clk 0:02:15.2]} 12. Rad1 {[%clk 0:02:14.2]} 12...
a5 {[%clk 0:02:00.5]} 13. a3 {[%clk 0:02:13.8]} 13... a4 {[%clk 0:01:59.7]} 14.
b4 {[%clk 0:02:09.1]} 14... Bd4 {[%clk 0:01:58.2]} 15. d3 {[%clk 0:02:00.9]}
15... Bxc3 {[%clk 0:01:57.9]} 16. Bxc3 {[%clk 0:01:59]} 16... Qd6 {[%clk
0:01:50.2]} 17. d4 {[%clk 0:01:55.4]} 17... exd4 {[%clk 0:01:44.3]} 18. Rxd4
{[%clk 0:01:51.5]} 18... Qe6 {[%clk 0:01:40.8]} 19. Rdd1 {[%clk 0:01:42.6]}
19... Rad8 {[%clk 0:01:36.2]} 20. Bxf6 {[%clk 0:01:41.1]} 20... Rxd1 {[%clk
0:01:32.1]} 21. Rxd1 {[%clk 0:01:39.9]} 21... Qxf6 {[%clk 0:01:31.7]} 22. Qxf6
{[%clk 0:01:37.8]} 22... gxf6 {[%clk 0:01:31.9]} 23. Rd7 {[%clk 0:01:36.9]}
23... Rc8 {[%clk 0:01:29.7]} 24. g4 {[%clk 0:01:30.2]} 24... Kg7 {[%clk
0:01:29.5]} 25. Rd6 {[%clk 0:01:29.4]} 25... cxd6 {[%clk 0:01:24.2]} 26. Kg2
{[%clk 0:01:26.2]} 26... d5 {[%clk 0:01:22.2]} 27. exd5 {[%clk 0:01:24.1]} 27...
cxd5 {[%clk 0:01:22.4]} 28. Kf3 {[%clk 0:01:23.1]} 28... Rxc2 {[%clk 0:01:22.8]}
29. Ke3 {[%clk 0:01:21.6]} 29... Rc3+ {[%clk 0:01:23.1]} 30. Kd4 {[%clk
0:01:21.2]} 30... Rxa3 {[%clk 0:01:24]} 31. Kxd5 {[%clk 0:01:21.2]} 31... Rb3
{[%clk 0:01:23.6]} 32. Kc5 {[%clk 0:01:19.7]} 32... a3 {[%clk 0:01:24.2]} 33.
Kxb5 {[%clk 0:01:16.2]} 33... a2 {[%clk 0:01:24.5]} 0-1

[Event "Betsys MČR v online bleskovém šachu 2021"]
[Site "Chess.com"]
[Date "2021.04.17"]
[Round "4"]
[White "JonasFadrny"]
[Black "Ami2013"]
[Result "1-0"]
[WhiteElo "759"]
[BlackElo "416"]
[TimeControl "180+1"]
[EndTime "9:34:47 PDT"]
[Termination "Uživatel JonasFadrny zvítězil matem"]

1. e4 {[%clk 0:03:00.9]} 1... e5 {[%clk 0:02:58.6]} 2. Nf3 {[%clk 0:03:01.3]}
2... Nc6 {[%clk 0:02:57.1]} 3. Nc3 {[%clk 0:03:01.7]} 3... Nf6 {[%clk 0:02:54]}
4. Bc4 {[%clk 0:03:02.2]} 4... Bc5 {[%clk 0:02:48.3]} 5. Ng5 {[%clk 0:03:02.5]}
5... d6 {[%clk 0:02:42.4]} 6. Nxf7 {[%clk 0:03:01.7]} 6... Qe7 {[%clk
0:02:36.5]} 7. Nxh8 {[%clk 0:03:00.9]} 7... Nd7 {[%clk 0:02:27.8]} 8. O-O {[%clk
0:02:59.4]} 8... Qg5 {[%clk 0:02:24.9]} 9. d3 {[%clk 0:02:58.1]} 9... Nf6 {[%clk
0:02:19.8]} 10. Bxg5 {[%clk 0:02:56.7]} 10... Bg4 {[%clk 0:02:12.7]} 11. Qe1
{[%clk 0:02:51.7]} 11... O-O-O {[%clk 0:02:06.3]} 12. Bxf6 {[%clk 0:02:51.2]}
12... gxf6 {[%clk 0:02:05]} 13. h3 {[%clk 0:02:51.5]} 13... Bh5 {[%clk
0:02:03.3]} 14. g4 {[%clk 0:02:49.5]} 14... Bg6 {[%clk 0:02:01.2]} 15. Nxg6
{[%clk 0:02:48.5]} 15... hxg6 {[%clk 0:01:59.2]} 16. Bd5 {[%clk 0:02:44]} 16...
Rh8 {[%clk 0:01:54.7]} 17. Bxc6 {[%clk 0:02:41.7]} 17... Rxh3 {[%clk 0:01:48.4]}
18. Ba4 {[%clk 0:02:35.9]} 18... f5 {[%clk 0:01:37.2]} 19. Bb3 {[%clk
0:02:29.9]} 19... g5 {[%clk 0:01:36.3]} 20. gxf5 {[%clk 0:02:22.1]} 20... g4
{[%clk 0:01:35.3]} 21. Be6+ {[%clk 0:02:17.7]} 21... Kb8 {[%clk 0:01:31.9]} 22.
Nd5 {[%clk 0:02:09.1]} 22... g3 {[%clk 0:01:29.2]} 23. b4 {[%clk 0:01:54]} 23...
g2 {[%clk 0:01:27.9]} 24. Kxg2 {[%clk 0:01:50.2]} 24... Rh4 {[%clk 0:01:22.9]}
25. f6 {[%clk 0:01:46.1]} 25... Rg4+ {[%clk 0:01:15.2]} 26. Bxg4 {[%clk
0:01:44.9]} 26... Bd4 {[%clk 0:01:10.9]} 27. Rc1 {[%clk 0:01:41.6]} 27... c6
{[%clk 0:01:05.7]} 28. c3 {[%clk 0:01:40.1]} 28... cxd5 {[%clk 0:01:03.1]} 29.
cxd4 {[%clk 0:01:40.4]} 29... dxe4 {[%clk 0:01:02.7]} 30. Qc3 {[%clk 0:01:38.2]}
30... exd3 {[%clk 0:00:53.8]} 31. Qc8# {[%clk 0:01:37.3]} 1-0

[Event "Betsys MČR v online bleskovém šachu 2021"]
[Site "Chess.com"]
[Date "2021.04.17"]
[Round "4"]
[White "milanpetras"]
[Black "RomanHlavicka"]
[Result "1-0"]
[WhiteElo "1832"]
[BlackElo "1513"]
[TimeControl "180+1"]
[EndTime "9:34:49 PDT"]
[Termination "Uživatel milanpetras zvítězil po vzdání soupeře"]

1. e4 {[%clk 0:03:00.9]} 1... c5 {[%clk 0:02:58.7]} 2. Nf3 {[%clk 0:02:57.8]}
2... Nc6 {[%clk 0:02:57.4]} 3. c3 {[%clk 0:02:55.7]} 3... d6 {[%clk 0:02:54.4]}
4. d4 {[%clk 0:02:53.6]} 4... cxd4 {[%clk 0:02:53.9]} 5. cxd4 {[%clk 0:02:53]}
5... Nf6 {[%clk 0:02:50.8]} 6. Nc3 {[%clk 0:02:52.4]} 6... Bd7 {[%clk
0:02:50.2]} 7. Be2 {[%clk 0:02:41.1]} 7... e6 {[%clk 0:02:50.3]} 8. O-O {[%clk
0:02:40.6]} 8... Be7 {[%clk 0:02:50.4]} 9. e5 {[%clk 0:02:34.1]} 9... dxe5
{[%clk 0:02:49.1]} 10. dxe5 {[%clk 0:02:30.6]} 10... Ng4 {[%clk 0:02:44.4]} 11.
Bf4 {[%clk 0:02:24.1]} 11... O-O {[%clk 0:02:36.6]} 12. h3 {[%clk 0:02:22]}
12... Nh6 {[%clk 0:02:34.6]} 13. Bxh6 {[%clk 0:02:20]} 13... gxh6 {[%clk
0:02:34.3]} 14. Rc1 {[%clk 0:01:56.2]} 14... Bg5 {[%clk 0:02:29.8]} 15. Nxg5
{[%clk 0:01:41.3]} 15... Qxg5 {[%clk 0:02:28.9]} 16. f4 {[%clk 0:01:39.6]} 16...
Qg7 {[%clk 0:02:14.3]} 17. Ne4 {[%clk 0:01:38.4]} 17... Be8 {[%clk 0:01:57.5]}
18. Rc3 {[%clk 0:01:30.4]} 18... Kh8 {[%clk 0:01:53.9]} 19. Rg3 {[%clk
0:01:23.1]} 19... Rd8 {[%clk 0:01:43.1]} 20. Qe1 {[%clk 0:01:14.6]} 20... Nd4
{[%clk 0:01:32.5]} 21. Rxg7 {[%clk 0:01:13.2]} 21... Kxg7 {[%clk 0:01:32.5]} 22.
Bf3 {[%clk 0:01:09.6]} 22... Nf5 {[%clk 0:01:31.8]} 23. Ng3 {[%clk 0:01:05.3]}
23... Nh4 {[%clk 0:01:23.5]} 24. Nh5+ {[%clk 0:01:04.3]} 24... Kh8 {[%clk
0:01:21]} 25. Qxh4 {[%clk 0:01:03.9]} 25... Rd2 {[%clk 0:01:18.6]} 26. Qf6+
{[%clk 0:01:02.5]} 1-0

[Event "Betsys MČR v online bleskovém šachu 2021"]
[Site "Chess.com"]
[Date "2021.04.17"]
[Round "4"]
[White "bezzuton"]
[Black "Evca64"]
[Result "0-1"]
[WhiteElo "1452"]
[BlackElo "2074"]
[TimeControl "180+1"]
[EndTime "9:34:58 PDT"]
[Termination "Uživatel Evca64 zvítězil po vzdání soupeře"]

1. d4 {[%clk 0:03:00.9]} 1... d5 {[%clk 0:02:59.3]} 2. Bf4 {[%clk 0:02:59]} 2...
Nf6 {[%clk 0:02:58.7]} 3. e3 {[%clk 0:02:57]} 3... c5 {[%clk 0:02:58.4]} 4. c3
{[%clk 0:02:55.6]} 4... Nc6 {[%clk 0:02:57.5]} 5. Bd3 {[%clk 0:02:54.6]} 5...
Qb6 {[%clk 0:02:50.7]} 6. dxc5 {[%clk 0:02:39.4]} 6... Qxb2 {[%clk 0:02:31.2]}
7. Nd2 {[%clk 0:02:35.7]} 7... Qxc3 {[%clk 0:02:25.7]} 8. Rc1 {[%clk 0:02:34.2]}
8... Qxd3 {[%clk 0:02:22.8]} 9. Ngf3 {[%clk 0:02:29.8]} 9... Bg4 {[%clk
0:02:13.3]} 10. Qa4 {[%clk 0:02:17.7]} 10... Qa6 {[%clk 0:01:50.1]} 11. Qb3
{[%clk 0:02:12.5]} 11... e6 {[%clk 0:01:41.6]} 12. h3 {[%clk 0:01:58.1]} 12...
Bh5 {[%clk 0:01:37.3]} 13. g4 {[%clk 0:01:52.8]} 13... Bg6 {[%clk 0:01:37]} 14.
Nd4 {[%clk 0:01:43.2]} 14... Nxd4 {[%clk 0:01:24.6]} 15. exd4 {[%clk 0:01:41]}
15... Be7 {[%clk 0:01:23.7]} 16. Nf3 {[%clk 0:01:30.5]} 16... Be4 {[%clk
0:01:21.1]} 17. g5 {[%clk 0:01:07.6]} 17... Nh5 {[%clk 0:01:14.4]} 18. Be5
{[%clk 0:01:06.7]} 18... O-O {[%clk 0:01:06.9]} 19. a4 {[%clk 0:00:56.7]} 19...
f6 {[%clk 0:01:05.3]} 0-1

[Event "Betsys MČR v online bleskovém šachu 2021"]
[Site "Chess.com"]
[Date "2021.04.17"]
[Round "4"]
[White "vikysachy"]
[Black "Anyna"]
[Result "1-0"]
[WhiteElo "864"]
[BlackElo "809"]
[TimeControl "180+1"]
[EndTime "9:35:02 PDT"]
[Termination "Uživatel vikysachy zvítězil matem"]

1. e4 {[%clk 0:03:00.9]} 1... d5 {[%clk 0:02:57.8]} 2. e5 {[%clk 0:02:59.1]}
2... Nc6 {[%clk 0:02:55.4]} 3. d4 {[%clk 0:02:57.1]} 3... Bf5 {[%clk 0:02:50.4]}
4. Nf3 {[%clk 0:02:54.1]} 4... e6 {[%clk 0:02:49.7]} 5. Nc3 {[%clk 0:02:52.8]}
5... Qd7 {[%clk 0:02:43.9]} 6. Bd3 {[%clk 0:02:48.7]} 6... Bg6 {[%clk
0:02:30.6]} 7. O-O {[%clk 0:02:42.4]} 7... O-O-O {[%clk 0:02:28.8]} 8. a4 {[%clk
0:02:32]} 8... Nge7 {[%clk 0:02:23]} 9. a5 {[%clk 0:02:30.8]} 9... a6 {[%clk
0:02:21.4]} 10. Bd2 {[%clk 0:02:16.2]} 10... f6 {[%clk 0:02:03.9]} 11. Na4
{[%clk 0:02:03.1]} 11... Bxd3 {[%clk 0:01:52.2]} 12. cxd3 {[%clk 0:01:59.9]}
12... fxe5 {[%clk 0:01:40.8]} 13. dxe5 {[%clk 0:01:56.7]} 13... g6 {[%clk
0:01:33.8]} 14. b4 {[%clk 0:01:54.7]} 14... Bg7 {[%clk 0:01:27.4]} 15. b5 {[%clk
0:01:51.6]} 15... axb5 {[%clk 0:01:25.6]} 16. Nc5 {[%clk 0:01:46.9]} 16... Qe8
{[%clk 0:01:22]} 17. a6 {[%clk 0:01:45]} 17... bxa6 {[%clk 0:01:11.7]} 18. Rxa6
{[%clk 0:01:43.3]} 18... Nb8 {[%clk 0:00:49.4]} 19. Ra8 {[%clk 0:01:39.2]} 19...
Nc6 {[%clk 0:00:44.5]} 20. Qb3 {[%clk 0:01:30.4]} 20... Bxe5 {[%clk 0:00:39.6]}
21. Nxe5 {[%clk 0:01:26.5]} 21... Nxe5 {[%clk 0:00:38.4]} 22. Qa3 {[%clk
0:01:26.2]} 22... Nc6 {[%clk 0:00:35.8]} 23. Qa6# {[%clk 0:01:21.5]} 1-0

[Event "Betsys MČR v online bleskovém šachu 2021"]
[Site "Chess.com"]
[Date "2021.04.17"]
[Round "4"]
[White "alenka777"]
[Black "Tobish"]
[Result "0-1"]
[WhiteElo "1275"]
[BlackElo "1665"]
[TimeControl "180+1"]
[EndTime "9:35:08 PDT"]
[Termination "Uživatel Tobish zvítězil matem"]

1. e4 {[%clk 0:03:00.9]} 1... c5 {[%clk 0:02:56.5]} 2. Nc3 {[%clk 0:02:55.6]}
2... Nc6 {[%clk 0:02:53.4]} 3. Nf3 {[%clk 0:02:55.1]} 3... d6 {[%clk 0:02:51.9]}
4. Bc4 {[%clk 0:02:54.7]} 4... e6 {[%clk 0:02:49]} 5. d3 {[%clk 0:02:54.4]} 5...
Nf6 {[%clk 0:02:46.2]} 6. O-O {[%clk 0:02:53.1]} 6... Be7 {[%clk 0:02:43.5]} 7.
Ng5 {[%clk 0:02:48]} 7... O-O {[%clk 0:02:37.4]} 8. Qf3 {[%clk 0:02:43.6]} 8...
a6 {[%clk 0:02:28.8]} 9. Qh3 {[%clk 0:02:30.2]} 9... b5 {[%clk 0:02:27.9]} 10.
Bb3 {[%clk 0:02:28.6]} 10... d5 {[%clk 0:02:21]} 11. e5 {[%clk 0:02:27.4]} 11...
Nxe5 {[%clk 0:02:20]} 12. a3 {[%clk 0:02:17.2]} 12... c4 {[%clk 0:02:18.5]} 13.
dxc4 {[%clk 0:02:16.1]} 13... dxc4 {[%clk 0:02:16.6]} 14. Ba2 {[%clk 0:02:14.8]}
14... h6 {[%clk 0:02:16.4]} 15. Nf3 {[%clk 0:02:12.8]} 15... Ng6 {[%clk
0:02:14.3]} 16. Bb1 {[%clk 0:02:00.8]} 16... e5 {[%clk 0:02:12.4]} 17. Ne2
{[%clk 0:01:28]} 17... e4 {[%clk 0:02:10.2]} 18. Qg3 {[%clk 0:01:21.5]} 18...
exf3 {[%clk 0:02:08.7]} 19. Qxf3 {[%clk 0:01:21]} 19... Bg4 {[%clk 0:02:07.3]}
20. Qe3 {[%clk 0:01:16.8]} 20... Nd5 {[%clk 0:02:05.9]} 21. Qd2 {[%clk
0:01:06.2]} 21... Bg5 {[%clk 0:02:00.2]} 22. f4 {[%clk 0:01:03.5]} 22... Bxe2
{[%clk 0:01:57.3]} 23. Qxe2 {[%clk 0:01:00.7]} 23... Qb6+ {[%clk 0:01:56.2]} 24.
Kh1 {[%clk 0:00:57.2]} 24... Ngxf4 {[%clk 0:01:46.6]} 25. Bxf4 {[%clk
0:00:55.2]} 25... Nxf4 {[%clk 0:01:46.2]} 26. Qe4 {[%clk 0:00:46.5]} 26... Rfe8
{[%clk 0:01:43.2]} 27. Qf5 {[%clk 0:00:37.5]} 27... Qc6 {[%clk 0:01:38.5]} 28.
Rf2 {[%clk 0:00:33.9]} 28... Re1+ {[%clk 0:01:36.7]} 29. Rf1 {[%clk 0:00:29.2]}
29... Rxf1# {[%clk 0:01:36.4]} 0-1

[Event "Betsys MČR v online bleskovém šachu 2021"]
[Site "Chess.com"]
[Date "2021.04.17"]
[Round "4"]
[White "matycz07"]
[Black "Michaela1994"]
[Result "0-1"]
[WhiteElo "998"]
[BlackElo "1616"]
[TimeControl "180+1"]
[EndTime "9:35:10 PDT"]
[Termination "Uživatel Michaela1994 zvítězil matem"]

1. e4 {[%clk 0:03:00.9]} 1... e6 {[%clk 0:02:59.7]} 2. Nf3 {[%clk 0:02:59.4]}
2... d5 {[%clk 0:02:59.3]} 3. exd5 {[%clk 0:02:58.9]} 3... exd5 {[%clk
0:02:58.8]} 4. Nc3 {[%clk 0:02:59.8]} 4... c6 {[%clk 0:02:57.7]} 5. d4 {[%clk
0:02:59.2]} 5... Bd6 {[%clk 0:02:57.7]} 6. Bd3 {[%clk 0:02:56.8]} 6... Ne7
{[%clk 0:02:57.7]} 7. O-O {[%clk 0:02:54.9]} 7... Bf5 {[%clk 0:02:57.7]} 8. Bxf5
{[%clk 0:02:54.1]} 8... Nxf5 {[%clk 0:02:57.1]} 9. Bf4 {[%clk 0:02:41.4]} 9...
Bxf4 {[%clk 0:02:53.7]} 10. Qd3 {[%clk 0:02:36.2]} 10... Ne7 {[%clk 0:02:43]}
11. g3 {[%clk 0:02:27.8]} 11... Bd6 {[%clk 0:02:40.5]} 12. Ne5 {[%clk 0:02:21]}
12... O-O {[%clk 0:02:38.8]} 13. Rae1 {[%clk 0:01:55.9]} 13... Nd7 {[%clk
0:02:36.2]} 14. Ng4 {[%clk 0:01:51.9]} 14... Ng6 {[%clk 0:02:30.7]} 15. Ne2
{[%clk 0:01:48]} 15... Qc7 {[%clk 0:02:29.1]} 16. Nf4 {[%clk 0:01:47.5]} 16...
Nxf4 {[%clk 0:02:21.2]} 17. gxf4 {[%clk 0:01:46.2]} 17... Bxf4 {[%clk
0:02:20.8]} 18. Ne5 {[%clk 0:01:42.2]} 18... Nxe5 {[%clk 0:02:17.5]} 19. dxe5
{[%clk 0:01:42.2]} 19... Bxe5 {[%clk 0:02:17.1]} 20. Kh1 {[%clk 0:01:31.5]}
20... Bxh2 {[%clk 0:02:14.2]} 21. Kg2 {[%clk 0:01:23.1]} 21... h6 {[%clk
0:02:01]} 22. Rh1 {[%clk 0:01:19.8]} 22... Be5 {[%clk 0:01:49.4]} 23. Ref1
{[%clk 0:01:13.3]} 23... Rae8 {[%clk 0:01:39.6]} 24. f4 {[%clk 0:01:03.4]} 24...
Bxf4 {[%clk 0:01:35.9]} 25. Rxf4 {[%clk 0:00:54.2]} 25... Qxf4 {[%clk
0:01:34.3]} 26. Qf3 {[%clk 0:00:54.7]} 26... Qxf3+ {[%clk 0:01:30.5]} 27. Kxf3
{[%clk 0:00:55.6]} 27... Re4 {[%clk 0:01:29.6]} 28. b3 {[%clk 0:00:51.8]} 28...
Rfe8 {[%clk 0:01:29.9]} 29. Rh2 {[%clk 0:00:51.1]} 29... Re3+ {[%clk 0:01:28.8]}
30. Kf4 {[%clk 0:00:50.4]} 30... R8e4+ {[%clk 0:01:28.5]} 31. Kf5 {[%clk
0:00:49.3]} 31... g6+ {[%clk 0:01:27.8]} 32. Kf6 {[%clk 0:00:49]} 32... Rf3#
{[%clk 0:01:27.8]} 0-1

[Event "Betsys MČR v online bleskovém šachu 2021"]
[Site "Chess.com"]
[Date "2021.04.17"]
[Round "4"]
[White "kol340"]
[Black "TomasOrnet1"]
[Result "1-0"]
[WhiteElo "1833"]
[BlackElo "1504"]
[TimeControl "180+1"]
[EndTime "9:35:12 PDT"]
[Termination "Uživatel kol340 zvítězil matem"]

1. d4 {[%clk 0:03:00.9]} 1... d5 {[%clk 0:02:56.7]} 2. Nf3 {[%clk 0:03:01.8]}
2... Bf5 {[%clk 0:02:55.5]} 3. Bf4 {[%clk 0:03:02.7]} 3... e6 {[%clk 0:02:54.5]}
4. e3 {[%clk 0:03:00.2]} 4... Bd6 {[%clk 0:02:54.1]} 5. Bg3 {[%clk 0:03:00.6]}
5... Bxg3 {[%clk 0:02:52.8]} 6. hxg3 {[%clk 0:03:01.5]} 6... Nf6 {[%clk
0:02:52.6]} 7. c4 {[%clk 0:03:01.9]} 7... c6 {[%clk 0:02:47.8]} 8. Nc3 {[%clk
0:02:56.3]} 8... Ne4 {[%clk 0:02:44.4]} 9. Rc1 {[%clk 0:02:54.9]} 9... Qa5
{[%clk 0:02:42.4]} 10. Bd3 {[%clk 0:02:42.7]} 10... Nxc3 {[%clk 0:02:37.1]} 11.
bxc3 {[%clk 0:02:40]} 11... Bxd3 {[%clk 0:02:34.9]} 12. Qxd3 {[%clk 0:02:39.9]}
12... Qxa2 {[%clk 0:02:34.5]} 13. Rxh7 {[%clk 0:02:38.2]} 13... Rg8 {[%clk
0:02:26.9]} 14. cxd5 {[%clk 0:02:31.5]} 14... Qxd5 {[%clk 0:02:25.5]} 15. c4
{[%clk 0:02:30.5]} 15... Qf5 {[%clk 0:02:23.7]} 16. Qxf5 {[%clk 0:02:29.8]}
16... exf5 {[%clk 0:02:23.2]} 17. Ke2 {[%clk 0:02:25.3]} 17... Nd7 {[%clk
0:02:21.4]} 18. Rb1 {[%clk 0:02:24.2]} 18... O-O-O {[%clk 0:02:18.7]} 19. c5
{[%clk 0:02:22.4]} 19... Nf6 {[%clk 0:02:17]} 20. Rhh1 {[%clk 0:02:21.2]} 20...
Ne4 {[%clk 0:02:16.5]} 21. Rb3 {[%clk 0:02:16.5]} 21... g5 {[%clk 0:02:09.3]}
22. Ne5 {[%clk 0:02:13.5]} 22... Rg7 {[%clk 0:02:04.7]} 23. Rhb1 {[%clk
0:02:12.4]} 23... f6 {[%clk 0:02:01.1]} 24. Nc4 {[%clk 0:02:10.9]} 24... f4
{[%clk 0:01:52.1]} 25. gxf4 {[%clk 0:02:09.7]} 25... gxf4 {[%clk 0:01:50.9]} 26.
Kf3 {[%clk 0:01:47.3]} 26... Ng5+ {[%clk 0:01:43.3]} 27. Kxf4 {[%clk 0:01:46.1]}
27... Ne6+ {[%clk 0:01:43]} 28. Kf3 {[%clk 0:01:41.8]} 28... Ng5+ {[%clk
0:01:41.6]} 29. Ke2 {[%clk 0:01:41.1]} 29... Ne4 {[%clk 0:01:39.6]} 30. g3
{[%clk 0:01:18]} 30... f5 {[%clk 0:01:33.2]} 31. Rh1 {[%clk 0:01:13.2]} 31...
Rxg3 {[%clk 0:01:27.2]} 32. Rh7 {[%clk 0:01:09.3]} 32... Rg2 {[%clk 0:01:22.3]}
33. Rbxb7 {[%clk 0:01:05.8]} 33... Rxf2+ {[%clk 0:01:22]} 34. Ke1 {[%clk
0:01:04.4]} 34... Ra2 {[%clk 0:01:16.5]} 35. Rhc7# {[%clk 0:01:03.5]} 1-0

[Event "Betsys MČR v online bleskovém šachu 2021"]
[Site "Chess.com"]
[Date "2021.04.17"]
[Round "4"]
[White "Diamantidis_13"]
[Black "PremetFugas"]
[Result "1-0"]
[WhiteElo "2446"]
[BlackElo "2134"]
[TimeControl "180+1"]
[EndTime "9:35:13 PDT"]
[Termination "Uživatel Diamantidis_13 zvítězil po vzdání soupeře"]

1. Nf3 {[%clk 0:03:00.9]} 1... f5 {[%clk 0:02:56]} 2. d3 {[%clk 0:02:57.3]} 2...
Nf6 {[%clk 0:02:55.4]} 3. e4 {[%clk 0:02:57.6]} 3... d6 {[%clk 0:02:52.7]} 4.
exf5 {[%clk 0:02:53.6]} 4... Bxf5 {[%clk 0:02:51.9]} 5. d4 {[%clk 0:02:54.2]}
5... Qd7 {[%clk 0:02:37.8]} 6. Bd3 {[%clk 0:02:53.5]} 6... Nc6 {[%clk
0:02:32.2]} 7. O-O {[%clk 0:02:49.5]} 7... O-O-O {[%clk 0:02:27.7]} 8. Nc3
{[%clk 0:02:42.5]} 8... h6 {[%clk 0:02:20.6]} 9. d5 {[%clk 0:02:37.8]} 9... Nb4
{[%clk 0:02:18]} 10. Bxf5 {[%clk 0:02:35.6]} 10... Qxf5 {[%clk 0:02:17.3]} 11.
Nd4 {[%clk 0:02:36.1]} 11... Qh5 {[%clk 0:01:51.1]} 12. Ne6 {[%clk 0:02:11.4]}
12... Qxd1 {[%clk 0:01:48]} 13. Rxd1 {[%clk 0:02:12.3]} 13... Nxc2 {[%clk
0:01:47.4]} 14. Rb1 {[%clk 0:02:01.8]} 14... Nb4 {[%clk 0:01:22.6]} 15. a3
{[%clk 0:01:57]} 15... Na6 {[%clk 0:01:20.4]} 16. Nxd8 {[%clk 0:01:53.7]} 16...
Kxd8 {[%clk 0:01:20.3]} 17. b4 {[%clk 0:01:54.1]} 17... g5 {[%clk 0:01:19.4]}
18. Be3 {[%clk 0:01:52]} 18... b6 {[%clk 0:01:14.7]} 19. Nb5 {[%clk 0:01:45]}
19... Bg7 {[%clk 0:01:10.7]} 20. Nxa7 {[%clk 0:01:43.6]} 20... Kd7 {[%clk
0:01:06.6]} 21. Nb5 {[%clk 0:01:40.6]} 21... c6 {[%clk 0:00:57.2]} 22. dxc6+
{[%clk 0:01:37]} 22... Kxc6 {[%clk 0:00:57.5]} 23. Nxd6 {[%clk 0:01:29.1]} 23...
exd6 {[%clk 0:00:50.8]} 24. b5+ {[%clk 0:01:29.2]} 24... Kd7 {[%clk 0:00:44.9]}
25. bxa6 {[%clk 0:01:30.1]} 25... Rb8 {[%clk 0:00:37.3]} 26. Rxb6 {[%clk
0:01:25]} 1-0